bitfinex-derivatives/quotes_SOLF0:USTF0_20250202
["timestamp","ask_amount","ask_price","bid_price","bid_amount"]
[1738505995045,0.03217375,213.43,213.39,0.03311736]
[1738505998650,0.03217375,213.43,213.4,4.6876]
[1738505999149,0.03217375,213.43,213.39,0.03311736]
[1738506001646,4.6876,213.4,213.39,0.03311736]
[1738506001853,14.04,213.4,213.24,4.4032]
[1738506002443,18.389,213.42,213.24,4.4032]
[1738506002650,3.2,213.52,213.24,4.4032]
[1738506002845,2.949,213.51,213.24,4.4032]
[1738506003143,0.0303396,213.4,213.36,0.03142248]
[1738506003346,2.949,213.51,213.36,0.03142248]
[1738506003545,14.04,213.6,213.33,2.9583]
[1738506003748,14.04,213.6,213.33,194.9583]
[1738506003952,4.6848,213.53,213.47,4.6861]
[1738506004151,14.04,213.6,213.33,194.9583]
[1738506004551,0.02962327,213.49,213.44,0.03491664]
[1738506004750,4.6848,213.53,213.37,4.6881]
[1738506004957,0.03377044,213.49,213.44,0.03385477]
[1738506005255,14.04,213.6,213.33,194.9583]
[1738506005451,0.03362553,213.49,213.45,4.6864]
[1738506005653,14.04,213.6,213.33,194.9583]
[1738506005958,4.6863,213.47,213.44,0.03595459]
[1738506006153,4.6863,213.47,213.4,4.6876]
[1738506006353,4.6863,213.47,213.43,0.03100362]
[1738506006556,4.6866,213.45,213.43,3.62e-06]
[1738506007155,18.7266,213.45,213.43,3.62e-06]
[1738506008556,4.6866,213.45,213.43,3.62e-06]
[1738506010551,4.6862,213.47,213.43,3.62e-06]
[1738506010748,0.03076377,213.48,213.43,3.62e-06]
[1738506011358,0.03076377,213.48,213.44,4.6866]
[1738506011554,0.03076377,213.48,213.43,3.62e-06]
[1738506011761,3.26,213.62,213.43,3.62e-06]
[1738506012058,3.26,213.62,213.49,4.6856]
[1738506012259,3.26,213.62,213.32,195.26]
[1738506012559,3.26,213.62,213.49,4.6856]
[1738506013055,0.03016819,213.58,213.56,4.684]
[1738506013357,1.425,213.7,213.45,3.28]
[1738506013557,0.0340236,213.59,213.55,0.03167048]
[1738506013752,1.425,213.7,213.45,195.28]
[1738506013957,0.03123136,213.59,213.55,0.02991488]
[1738506014158,1.462,213.71,213.59,4.6833]
[1738506014361,4.7121,213.75,213.45,195.28]
[1738506015354,0.03230501,213.62,213.58,0.03340826]
[1738506015559,1.4321,213.75,213.45,195.28]
[1738506015755,0.0296177,213.62,213.58,0.03256565]
[1738506015955,2.8941,213.75,213.45,195.28]
[1738506016151,0.03102146,213.62,213.58,0.03346577]
[1738506016355,2.8941,213.75,213.45,195.28]
[1738506016556,0.03433986,213.62,213.59,4.6834]
[1738506016752,2.8941,213.75,213.6,1.5293]
[1738506016958,0.03214232,213.63,213.6,1.5293]
[1738506017158,2.8941,213.75,213.6,1.5293]
[1738506017359,0.03180626,213.64,213.6,1.5293]
[1738506017553,2.8941,213.75,213.6,1.56102558]
[1738506017759,2.8941,213.75,213.6,1.5293]
[1738506017954,0.03533498,213.7,213.65,0.03379565]
[1738506018162,4.6818,213.67,213.65,0.03379565]
[1738506018761,0.03533498,213.7,213.65,0.03379565]
[1738506020568,0.03533498,213.7,213.65,4.71589565]
[1738506020865,0.03533498,213.7,213.65,0.03379565]
[1738506021565,4.6813,213.69,213.65,0.03379565]
[1738506021768,0.03533498,213.7,213.65,0.03379565]
[1738506022166,4.6818,213.67,213.65,0.03379565]
[1738506022367,0.03533498,213.7,213.65,0.03379565]
[1738506023269,4.6817,213.67,213.65,0.03379565]
[1738506023667,1.4791,213.69,213.53,1.4847]
[1738506023872,2.9378,213.69,213.53,1.4847]
[1738506024072,2.9378,213.69,213.56,4.684]
[1738506024073,4.6823,213.65,213.56,4.684]
[1738506024270,2.9378,213.69,213.56,4.684]
[1738506024465,2.9378,213.69,213.53,1.4847]
[1738506024663,16.9778,213.69,213.59,0.03068937]
[1738506024870,4.6828,213.62,213.59,0.03068937]
[1738506025070,0.03140577,213.63,213.59,0.03068937]
[1738506025573,4.71400577,213.63,213.59,0.03068937]
[1738506026073,0.03140577,213.63,213.59,0.03068937]
[1738506026371,4.6831,213.61,213.59,0.03068937]
[1738506026873,0.03140577,213.63,213.5,1.4527]
[1738506026874,4.6842,213.56,213.5,1.4527]
[1738506027074,4.6842,213.56,213.47,1.5433]
[1738506027274,1.4205,213.62,213.47,1.5433]
[1738506027574,4.6845,213.55,213.47,1.5433]
[1738506027774,1.4205,213.62,213.49,4.6856]
[1738506027973,1.4205,213.62,213.47,1.5433]
[1738506028275,1.4205,213.62,213.43,1.4602]
[1738506028576,1.4205,213.62,213.43,2.9975]
[1738506028768,1.4205,213.62,213.44,1.3949]
[1738506028973,1.4205,213.62,213.52,4.685]
[1738506030077,4.6835,213.59,213.5,4.6853]
[1738506030573,4.6835,213.59,213.51,4.6852]
[1738506031074,4.6835,213.59,213.44,1.3949]
[1738506031275,4.6835,213.59,213.52,4.6849]
[1738506031473,1.4205,213.62,213.44,1.3949]
[1738506031675,16.9778,213.69,213.6,4.6831]
[1738506031971,2.192e-05,213.55,213.51,0.03093959]
[1738506032171,2.192e-05,213.55,213.44,193.3949]
[1738506032172,4.6816,213.68,213.61,4.6829]
[1738506032470,3.26,213.73,213.47,3.26]
[1738506032675,3.26,213.73,213.47,195.26]
[1738506033073,0.03084808,213.62,213.58,0.03411398]
[1738506033269,2.9114,213.74,213.47,195.26]
[1738506033270,2.9114,213.74,213.48,0.85325356]
[1738506033473,0.03401682,213.62,213.58,0.03286933]
[1738506033677,2.9114,213.74,213.53,2.8226]
[1738506033978,2.9114,213.74,213.54,1.4351]
[1738506034679,4.6815,213.68,213.62,4.6828]
[1738506034877,0.03228729,213.66,213.62,4.71678728]
[1738506035070,0.03228729,213.66,213.62,0.03398728]
[1738506036870,0.03228729,213.66,213.64,4.6823]
[1738506038179,0.03228729,213.66,213.63,1.4825]
[1738506039374,0.03228729,213.66,213.62,0.03398728]
[1738506039582,4.6826,213.63,213.62,0.03398728]
[1738506041282,1.4722,213.65,213.49,1.5391]
[1738506041584,1.508,213.62,213.5,4.6854]
[1738506041782,4.6836,213.59,213.5,4.6854]
[1738506041985,1.508,213.62,213.49,1.5391]
[1738506042182,1.508,213.62,213.44,1.4015]
[1738506042382,4.6846,213.54,213.53,0.03516273]
[1738506042884,4.6843,213.56,213.53,0.03516273]
[1738506043486,0.02957617,213.58,213.53,0.03516273]
[1738506043783,4.6844,213.55,213.53,0.03516273]
[1738506043983,0.02957617,213.58,213.44,1.4015]
[1738506044184,14.04,213.57,213.43,1.5391]
[1738506044489,14.04,213.57,213.36,2.8987]
[1738506044690,4.6857,213.49,213.4,4.6874]
[1738506045189,0.02960999,213.47,213.42,4.72116213]
[1738506045392,14.04,213.57,213.37,1.4293]
[1738506045594,0.03344318,213.47,213.42,0.03380226]
[1738506045794,4.71954318,213.47,213.42,0.03380226]
[1738506045995,14.04,213.57,213.37,1.4293]
[1738506046189,0.03516635,213.47,213.42,0.0356249]
[1738506046388,4.6868,213.44,213.42,0.0356249]
[1738506046689,0.03022489,213.45,213.41,0.03026678]
[1738506046996,15.528,213.46,213.33,4.6891]
[1738506047297,0.0326759,213.45,213.41,0.03574589]
[1738506047692,4.6882,213.38,213.29,4.69]
[1738506047892,17.0074,213.46,213.27,4.4899]
[1738506048397,17.0074,213.46,213.31,4.6895]
[1738506048889,0.02990107,213.41,213.36,0.02985777]
[1738506049488,4.6881,213.38,213.36,0.02985777]
[1738506049692,0.02990107,213.41,213.27,7.6423]
[1738506049893,17.0074,213.46,213.27,7.6423]
[1738506050693,4.689,213.34,213.2,1.4918]
[1738506050897,4.689,213.34,213.21,2.9927]
[1738506051096,0.03054261,213.29,213.25,0.0308574]
[1738506051297,0.03054261,213.29,213.26,4.6906]
[1738506051702,0.03054261,213.29,213.25,0.0308574]
[1738506051902,0.03054261,213.29,213.27,4.6905]
[1738506052798,17.0074,213.46,213.25,0.0308574]
[1738506053005,4.7716,213.45,213.21,2.9927]
[1738506053703,4.6878,213.4,213.21,2.9927]
[1738506053899,18.8116,213.45,213.22,0.85621924]
[1738506054105,0.03474651,213.33,213.28,0.03009702]
[1738506054306,18.8116,213.45,213.21,2.9927]
[1738506054502,0.03272378,213.29,213.28,0.03132076]
[1738506054706,18.8116,213.45,213.21,2.9927]
[1738506054902,18.8116,213.45,213.26,0.03203654]
[1738506054903,0.03226289,213.31,213.26,0.03203654]
[1738506055201,14.04,213.37,213.21,2.9927]
[1738506055407,4.6899,213.3,213.26,0.03117311]
[1738506055605,0.03037113,213.31,213.26,0.03117311]
[1738506055798,3.00217113,213.31,213.26,0.03117311]
[1738506055999,4.6903,213.28,213.26,0.03117311]
[1738506056203,3.00217113,213.31,213.26,0.03117311]
[1738506056707,0.03037113,213.31,213.26,0.03117311]
[1738506057103,0.03037113,213.31,213.3,4.6898]
[1738506057503,7.113e-05,213.31,213.3,4.6898]
[1738506059013,7.113e-05,213.31,213.28,4.69]
[1738506059310,7.113e-05,213.31,213.27,1.4814]
[1738506060311,7.113e-05,213.31,213.3,4.6898]
[1738506061409,7.113e-05,213.31,213.3,7.9298]
[1738506061917,2.9472,213.55,213.3,4.09614559]
[1738506062106,6.1313,213.58,213.31,2.9353]
[1738506062415,3.26,213.63,213.32,0.85588442]
[1738506062611,15.4874,213.62,213.32,192.85588442]
[1738506062805,4.6844,213.55,213.33,0.85588442]
[1738506063113,1.065e-05,213.49,213.45,0.0354621]
[1738506063315,1.065e-05,213.49,213.46,4.6863]
[1738506063514,1.4474,213.62,213.46,4.6863]
[1738506063910,4.6851,213.52,213.33,192.0]
[1738506064215,0.03053426,213.45,213.4,0.03057305]
[1738506065817,4.6872,213.42,213.4,0.03057305]
[1738506066918,0.03053426,213.45,213.33,4.6891]
[1738506067111,4.6884,213.37,213.29,4.6899]
[1738506067314,18.5926,213.5,213.27,1.4814]
[1738506067513,18.5926,213.5,213.21,2.8775]
[1738506067715,4.689,213.34,213.22,1.4261]
[1738506068115,0.02991894,213.3,213.26,0.03575113]
[1738506068312,4.6893,213.33,213.25,4.6908]
[1738506068517,0.03370813,213.3,213.26,0.03314927]
[1738506068821,16.9211,213.39,213.21,6.0869]
[1738506069023,0.03392142,213.3,213.26,0.03214618]
[1738506069323,16.9211,213.39,213.16,1.4781]
[1738506069520,0.02961065,213.3,213.26,0.03327558]
[1738506069715,4.6904,213.28,213.19,4.6921]
[1738506069921,4.6904,213.28,213.26,0.03248816]
[1738506070121,4.6904,213.28,213.19,4.6921]
[1738506070419,0.03262596,213.26,213.25,0.03350883]
[1738506070619,3.26,213.4,213.17,1.5281]
[1738506071020,4.689,213.34,213.17,1.5281]
[1738506071521,4.6885,213.37,213.3,4.6897]
[1738506072019,0.03245014,213.36,213.31,0.0305872]
[1738506072822,4.6893,213.33,213.31,0.0305872]
[1738506073424,4.6893,213.33,213.17,1.5281]
[1738506073425,2.8576,213.35,213.17,1.5281]
[1738506073623,1.4977,213.34,213.17,1.5281]
[1738506073920,1.4977,213.34,213.19,4.6921]
[1738506074224,1.4977,213.34,213.17,1.5281]
[1738506074416,4.6908,213.26,213.24,0.03176607]
[1738506074817,0.03567204,213.29,213.24,0.03176607]
[1738506076023,7.204e-05,213.29,213.24,0.03176607]
[1738506076325,7.204e-05,213.29,213.27,4.6904]
[1738506076925,7.204e-05,213.29,213.28,1.463]
[1738506080930,7.204e-05,213.29,213.28,4.723]
[1738506081329,7.204e-05,213.29,213.28,1.463]
[1738506081528,7.204e-05,213.29,213.27,4.6904]
[1738506082534,7.204e-05,213.29,213.28,3.0014]
[1738506084023,7.204e-05,213.29,213.28,1.4857]
[1738506084923,7.204e-05,213.29,213.27,4.6904]
[1738506086133,7.204e-05,213.29,213.25,4.6907]
[1738506086636,7.204e-05,213.29,213.24,0.03176607]
[1738506087135,7.204e-05,213.29,213.25,4.6909]
[1738506087937,7.204e-05,213.29,213.24,0.03176607]
[1738506088438,4.69017204,213.29,213.24,0.03176607]
[1738506089037,7.204e-05,213.29,213.24,0.03176607]
[1738506090932,7.204e-05,213.29,213.28,4.6903]
[1738506091440,7.204e-05,213.29,213.28,5.54722263]
[1738506092041,7.204e-05,213.29,213.28,4.6903]
[1738506092335,7.204e-05,213.29,213.25,9.76257238]
[1738506092733,7.204e-05,213.29,213.24,0.03176607]
[1738506094237,7.204e-05,213.29,213.27,4.6904]
[1738506094437,7.204e-05,213.29,213.28,2.9076]
[1738506095238,7.204e-05,213.29,213.28,3.76495475]
[1738506096238,7.204e-05,213.29,213.28,3.76494139]
[1738506096642,7.204e-05,213.29,213.28,2.9076]
[1738506096842,7.204e-05,213.29,213.28,3.7650146]
[1738506097040,7.204e-05,213.29,213.28,2.9076]
[1738506098140,7.204e-05,213.29,213.28,194.9076]
[1738506098346,7.204e-05,213.29,213.28,195.76506593]
[1738506098535,7.204e-05,213.29,213.28,207.23944245]
[1738506098939,1.524,213.54,213.28,207.23944245]
[1738506099140,4.6853,213.51,213.29,0.85746593]
[1738506099442,1.524,213.54,213.29,12.3282243]
[1738506099639,1.524,213.54,213.29,11.47075837]
[1738506099843,1.524,213.54,213.3,0.85682813]
[1738506100139,0.03549051,213.44,213.4,0.03320903]
[1738506100443,0.03549051,213.44,213.31,3.36]
[1738506100444,4.685,213.52,213.35,2.28222813]
[1738506100646,0.03572125,213.44,213.4,0.03547502]
[1738506100837,4.685,213.52,213.43,4.687]
[1738506101044,4.6848,213.54,213.41,3.0166]
[1738506101342,1.4031,213.58,213.5,4.6853]
[1738506101542,6.087,213.58,213.5,4.6853]
[1738506102045,0.03184014,213.56,213.52,0.03215665]
[1738506102647,0.03184014,213.56,213.52,4.71715665]
[1738506102846,0.03184014,213.56,213.52,0.03215665]
[1738506104241,4.6848,213.54,213.52,0.03215665]
[1738506104546,0.03184014,213.56,213.41,3.0166]
[1738506104735,0.03184014,213.56,213.35,193.4254]
[1738506104939,1.4031,213.58,213.36,1.4751]
[1738506105242,4.6855,213.5,213.43,4.6869]
[1738506105745,0.02974932,213.49,213.44,0.03264174]
[1738506106847,0.02974932,213.49,213.46,4.6863]
[1738506107043,0.02974932,213.49,213.44,0.03264174]
[1738506108747,0.02974932,213.49,213.48,4.6859]
[1738506108947,4.932e-05,213.49,213.48,4.6859]
[1738506118152,4.932e-05,213.49,213.48,7.7065]
[1738506118348,4.932e-05,213.49,213.48,9.1995]
[1738506120547,4.932e-05,213.49,213.48,201.1995]
[1738506120748,4.932e-05,213.49,213.48,202.05558792]
[1738506121145,4.4405,213.84,213.49,14.05]
[1738506121347,4.4405,213.84,213.56,112.0080098]
[1738506121656,4.4405,213.84,213.57,0.85608792]
[1738506121856,4.4405,213.84,213.58,3.32]
[1738506122051,4.6787,213.81,213.66,4.6818]
[1738506122257,4.4405,213.84,213.59,0.85608792]
[1738506122258,4.4405,213.84,213.59,1.5106]
[1738506122458,0.03383754,213.76,213.71,0.035754]
[1738506122850,0.03383754,213.76,213.69,3.32]
[1738506123054,0.03383754,213.76,213.71,0.03359645]
[1738506123458,4.6793,213.78,213.62,3.32]
[1738506123660,0.03581904,213.76,213.71,0.03352763]
[1738506125459,4.71561904,213.76,213.71,0.03352763]
[1738506125658,0.03581904,213.76,213.71,0.03352763]
[1738506126360,0.03581904,213.76,213.73,4.6803]
[1738506126756,0.03581904,213.76,213.71,0.03352763]
[1738506127662,0.03581904,213.76,213.59,196.8306]
[1738506127857,18.4805,213.84,213.59,192.0]
[1738506128060,18.4805,213.84,213.58,4.7728]
[1738506128361,18.4805,213.84,213.52,2.9481]
[1738506128556,18.4805,213.84,213.54,3.32]
[1738506128962,4.6811,213.7,213.68,0.03126882]
[1738506129263,4.6811,213.7,213.61,4.683]
[1738506129264,2.8971,213.69,213.61,4.683]
[1738506129463,2.8971,213.69,213.62,4.6827]
[1738506130360,0.03373277,213.68,213.63,0.03184987]
[1738506130763,0.03373277,213.68,213.63,4.71444987]
[1738506131059,0.03373277,213.68,213.63,0.03184987]
[1738506131259,0.03373277,213.68,213.66,4.6819]
[1738506131465,0.03373277,213.68,213.63,0.03184987]
[1738506132064,0.03373277,213.68,213.63,4.71434987]
[1738506132562,0.03373277,213.68,213.63,0.03184987]
[1738506133063,0.03373277,213.68,213.65,4.6821]
[1738506133268,0.03373277,213.68,213.63,0.03184987]
[1738506134566,1.46353277,213.68,213.63,0.03184987]
[1738506135568,1.46353277,213.68,213.59,4.6833]
[1738506135866,1.46353277,213.68,213.52,3.0661]
[1738506136569,0.03373277,213.68,213.6,0.03588386]
[1738506138265,4.6817,213.67,213.6,4.71908386]
[1738506138664,0.03373277,213.68,213.6,4.71908386]
[1738506138866,0.03373277,213.68,213.6,0.03588386]
[1738506139870,0.03373277,213.68,213.67,4.6817]
[1738506141867,0.03373277,213.68,213.65,0.03267338]
[1738506144175,0.03373277,213.68,213.56,115.3080098]
[1738506145275,4.71523277,213.68,213.62,4.6828]
[1738506146178,0.03373277,213.68,213.6,0.03263386]
[1738506146772,0.03373277,213.68,213.66,4.6818]
[1738506147674,0.03373277,213.68,213.65,0.03479753]
[1738506147675,0.03373277,213.68,213.67,4.6817]
[1738506149275,3.277e-05,213.68,213.67,4.6817]
[1738506149768,3.277e-05,213.68,213.67,7.9617]
[1738506150371,3.277e-05,213.68,213.67,8.81591864]
[1738506151070,3.28,213.97,213.67,8.81591864]
[1738506151071,161.92281345,213.99,213.86,4.6775]
[1738506151270,166.59751345,213.99,213.81,3.28]
[1738506151466,131.03575076,213.98,213.82,1.481]
[1738506151670,131.03575076,213.98,213.82,2.9609]
[1738506152072,131.03575076,213.98,213.9,4.6766]
[1738506152573,1.4975,213.98,213.93,4.6758]
[1738506152776,0.03575304,213.94,213.93,4.6758]
[1738506152977,0.03575304,213.94,213.93,4.71148752]
[1738506153870,0.03575304,213.94,213.93,0.03568752]
[1738506155977,0.03575304,213.94,213.88,4.677]
[1738506156376,0.03575304,213.94,213.82,2.9609]
[1738506156577,0.03575304,213.94,213.86,4.6774]
[1738506156777,0.03575304,213.94,213.82,1.481]
[1738506157075,4.6763,213.92,213.86,0.03398996]
[1738506157479,1.5212,213.96,213.86,0.03398996]
[1738506157674,0.03082691,213.91,213.86,0.03398996]
[1738506158177,0.03082691,213.91,213.71,192.0]
[1738506158374,0.03082691,213.91,213.69,6.3051]
[1738506158581,1.5212,213.96,213.69,6.3051]
[1738506159374,0.03001812,213.87,213.83,0.03018226]
[1738506159578,0.03001812,213.87,213.69,6.3051]
[1738506159981,4.6771,213.88,213.8,4.6788]
[1738506160181,1.4261,213.87,213.8,4.6788]
[1738506160377,6.1035,213.87,213.79,4.679]
[1738506160574,1.4261,213.87,213.69,6.3051]
[1738506160777,0.03071035,213.85,213.81,0.03416359]
[1738506161078,0.03071035,213.85,213.69,6.3051]
[1738506161279,4.70861035,213.85,213.69,3.0251]
[1738506161480,0.03071035,213.85,213.69,6.3051]
[1738506162178,0.03071035,213.85,213.77,0.03483432]
[1738506162382,0.03071035,213.85,213.83,4.6782]
[1738506162383,1.035e-05,213.85,213.83,4.6782]
[1738506167283,1.035e-05,213.85,213.84,4.678]
[1738506169987,1.035e-05,213.85,213.82,0.03365973]
[1738506170580,1.035e-05,213.85,213.84,4.678]
[1738506170882,1.035e-05,213.85,213.82,0.03365973]
[1738506171079,1.035e-05,213.85,213.82,4.71195973]
[1738506172083,1.035e-05,213.85,213.82,0.03365973]
[1738506172987,1.035e-05,213.85,213.74,0.96181887]
[1738506174083,1.035e-05,213.85,213.77,0.03479198]
[1738506175190,1.035e-05,213.85,213.61,6.2001]
[1738506175390,4.6793,213.78,213.61,6.2001]
[1738506175689,1.4239,213.77,213.61,6.2001]
[1738506175883,4.68,213.75,213.69,4.6812]
[1738506176089,1.4244,213.76,213.61,6.2001]
[1738506176389,0.0326603,213.74,213.7,0.03067269]
[1738506176586,0.0326603,213.74,213.72,4.6805]
[1738506179492,0.0326603,213.74,213.73,4.6804]
[1738506179994,6.03e-05,213.74,213.7,0.03067269]
[1738506180692,6.03e-05,213.74,213.73,4.6804]
[1738506182190,6.03e-05,213.74,213.7,0.03067269]
[1738506183296,6.03e-05,213.74,213.73,4.6804]
[1738506191106,6.03e-05,213.74,213.73,5.5323933]
[1738506191499,6.03e-05,213.74,213.73,4.6804]
[1738506191706,6.03e-05,213.74,213.73,5.53222922]
[1738506193106,1.4576,213.94,213.73,0.85182922]
[1738506193410,1.4576,213.94,213.74,0.85182922]
[1738506193607,1.4576,213.94,213.75,0.85182922]
[1738506193800,1.4799,213.93,213.76,0.85182922]
[1738506194409,0.0336009,213.87,213.82,0.03133781]
[1738506194709,0.0336009,213.87,213.86,4.6775]
[1738506194906,9e-07,213.87,213.86,4.6775]
[1738506197810,9e-07,213.87,213.86,5.52799105]
[1738506198003,9e-07,213.87,213.86,4.6775]
[1738506201516,9e-07,213.87,213.82,0.03133781]
[1738506202706,9e-07,213.87,213.85,4.6777]
[1738506203107,9e-07,213.87,213.82,0.03133781]
[1738506204414,9e-07,213.87,213.74,3.26]
[1738506204613,9e-07,213.87,213.7,111.93975285]
[1738506204817,9e-07,213.87,213.75,5.64159552]
[1738506205213,9e-07,213.87,213.75,0.96179552]
[1738506205409,9e-07,213.87,213.79,0.0313914]
[1738506205610,4.6774009,213.87,213.79,0.0313914]
[1738506205916,9e-07,213.87,213.79,0.0313914]
[1738506209628,9e-07,213.87,213.82,4.6783]
[1738506210521,9e-07,213.87,213.79,0.0313914]
[1738506210721,9e-07,213.87,213.85,4.6777]
[1738506212920,9e-07,213.87,213.84,0.03282406]
[1738506213224,9e-07,213.87,213.86,4.6775]
[1738506243245,9e-07,213.87,213.84,0.03282406]
[1738506243941,9e-07,213.87,213.72,31.1379855]
[1738506243942,9e-07,213.87,213.72,29.7259855]
[1738506244147,9e-07,213.87,213.72,9.695721]
[1738506244548,9e-07,213.87,213.69,189.38962864]
[1738506245046,4.6784,213.83,213.73,4.6802]
[1738506245247,2.8564,213.82,213.7,54.20609443]
[1738506246547,0.0351734,213.79,213.74,4.71459642]
[1738506247046,0.0351734,213.79,213.77,4.6795]
[1738506247446,0.0351734,213.79,213.74,0.03449642]
[1738506247850,0.0351734,213.79,213.61,3.22]
[1738506248042,2.8564,213.82,213.61,3.22]
[1738506248653,4.6789,213.8,213.7,4.6809]
[1738506248950,0.03308545,213.74,213.7,4.6809]
[1738506249546,0.03308545,213.74,213.69,0.02966981]
[1738506250148,0.03308545,213.74,213.57,3.22]
[1738506250454,1.4403,213.79,213.57,3.22]
[1738506251054,1.4403,213.79,213.56,3.22]
[1738506251357,0.03404254,213.7,213.66,0.02406547]
[1738506251655,0.03373758,213.7,213.66,0.02406547]
[1738506251850,0.03373758,213.7,213.53,4.4097]
[1738506252155,1.4403,213.79,213.53,4.4097]
[1738506252549,14.04,213.77,213.53,2.9889]
[1738506252754,14.04,213.75,213.46,3.22]
[1738506252949,0.03545696,213.67,213.46,3.22]
[1738506253149,14.04,213.73,213.44,4.4884]
[1738506253351,0.03408694,213.59,213.44,4.4884]
[1738506253553,4.6828,213.63,213.5,4.6854]
[1738506253755,0.03012888,213.54,213.44,4.4884]
[1738506253955,1.4334,213.62,213.44,4.4884]
[1738506254159,0.03422221,213.51,213.44,4.4884]
[1738506254960,2.221e-05,213.51,213.49,4.6856]
[1738506257661,2.221e-05,213.51,213.5,3.22]
[1738506260659,2.221e-05,213.51,213.49,4.6856]
[1738506262967,2.221e-05,213.51,213.5,4.6854]
[1738506266261,2.221e-05,213.51,213.45,0.03250191]
[1738506266866,2.221e-05,213.51,213.26,92.68]
[1738506267161,4.6862,213.47,213.31,3.22]
[1738506267365,2.9549,213.46,213.39,4.6878]
[1738506267667,2.9549,213.46,213.31,3.22]
[1738506267863,0.03580657,213.45,213.31,3.22]
[1738506268061,2.9549,213.46,213.31,3.22]
[1738506268267,0.03491954,213.41,213.31,3.22]
[1738506269066,0.03491954,213.41,213.37,4.6881]
[1738506269567,0.03491954,213.41,213.39,4.6878]
[1738506273575,0.03491954,213.41,213.4,4.6876]
[1738506273871,2.9549,213.46,213.4,4.6876]
[1738506274068,0.03066145,213.43,213.27,5.43302366]
[1738506274268,1.5463,213.48,213.28,0.85246701]
[1738506274772,1.5463,213.48,213.29,3.22]
[1738506274966,4.6843,213.56,213.3,0.85246701]
[1738506275266,1.5496,213.55,213.3,0.85246701]
[1738506275565,1.5496,213.55,213.4,0.03061596]
[1738506275762,1.4135,213.54,213.3,0.85246701]
[1738506275964,0.03034922,213.5,213.45,0.03162915]
[1738506276269,0.0307517,213.5,213.45,0.03596494]
[1738506276968,4.6858,213.49,213.45,0.03596494]
[1738506277169,1.5241,213.48,213.45,0.03596494]
[1738506278874,1.5241,213.48,213.46,4.6862]
[1738506280078,0.0307517,213.5,213.45,0.03596494]
[1738506281877,0.0307517,213.5,213.49,4.6856]
[1738506282073,0.0307517,213.5,213.45,0.03596494]
[1738506284177,0.0307517,213.5,213.46,4.6861]
[1738506284779,0.0307517,213.5,213.47,4.686]
[1738506284977,0.0307517,213.5,213.45,0.03596494]
[1738506285482,0.0307517,213.5,213.46,4.6862]
[1738506285780,0.0307517,213.5,213.45,0.03596494]
[1738506286286,0.0307517,213.5,213.48,4.6858]
[1738506286771,0.0307517,213.5,213.45,0.03596494]
[1738506287079,0.0307517,213.5,213.45,4.72236494]
[1738506287278,0.0307517,213.5,213.45,0.03596494]
[1738506291581,4.6859,213.48,213.45,0.03596494]
[1738506293372,4.6863,213.46,213.4,4.6875]
[1738506293680,4.6863,213.46,213.32,115.36062399]
[1738506294580,0.03428655,213.41,213.34,4.6888]
[1738506294777,0.03428655,213.41,213.29,2.9852]
[1738506295083,0.03428655,213.41,213.28,1.4612]
[1738506295282,15.4608,213.45,213.28,1.4612]
[1738506295582,0.03011097,213.37,213.28,1.4612]
[1738506295985,0.03011097,213.37,213.33,4.689]
[1738506296484,0.03011097,213.37,213.34,4.6889]
[1738506300082,0.03011097,213.37,213.35,4.6887]
[1738506300688,0.03011097,213.37,213.36,4.6885]
[1738506300889,1.097e-05,213.37,213.36,4.6885]
[1738506305493,1.097e-05,213.37,213.34,4.71962202]
[1738506305890,1.097e-05,213.37,213.34,0.03092202]
[1738506308195,1.097e-05,213.37,213.35,4.6887]
[1738506308395,1.097e-05,213.37,213.34,0.03092202]
[1738506308895,1.097e-05,213.37,213.36,4.6885]
[1738506309195,1.097e-05,213.37,213.34,0.03092202]
[1738506311698,1.097e-05,213.37,213.35,4.6887]
[1738506311894,1.097e-05,213.37,213.34,0.03092202]
[1738506313900,1.097e-05,213.37,213.35,4.6887]
[1738506314099,1.097e-05,213.37,213.34,0.03092202]
[1738506314801,4.6887,213.36,213.34,0.03092202]
[1738506315001,1.097e-05,213.37,213.34,0.03092202]
[1738506316404,4.6885,213.36,213.34,0.03092202]
[1738506316594,1.097e-05,213.37,213.34,0.03092202]
[1738506317805,4.68831097,213.37,213.34,0.03092202]